bitfinex/quotes_BTCUSD_20241216
["timestamp","ask_amount","ask_price","bid_price","bid_amount"]
[1734357039494,0.1930502,103690.0,103680.0,0.01514252]
[1734357039677,0.00137383,103690.0,103680.0,0.01514252]
[1734357039884,0.00137383,103690.0,103680.0,8.62e-05]
[1734357040332,0.36864653,103690.0,103680.0,8.62e-05]
[1734357040547,0.2873409,103690.0,103680.0,8.62e-05]
[1734357040993,0.0001682,103690.0,103680.0,8.62e-05]
[1734357041203,0.0001682,103690.0,103680.0,0.0942662]
[1734357041434,0.0001682,103690.0,103680.0,0.0556862]
[1734357041839,0.19425579,103690.0,103680.0,0.0546862]
[1734357042297,0.19425579,103690.0,103680.0,8.62e-05]
[1734357044410,0.19525579,103690.0,103680.0,8.62e-05]
[1734357045071,0.19525579,103690.0,103680.0,0.0546862]
[1734357045485,0.00237379,103690.0,103680.0,0.0546862]
[1734357045930,0.19542839,103690.0,103680.0,0.0546862]
[1734357047694,0.36801909,103690.0,103680.0,8.62e-05]
[1734357047903,0.3668135,103690.0,103680.0,8.62e-05]
[1734357048115,0.2725228,103690.0,103680.0,8.62e-05]
[1734357048320,0.1942228,103690.0,103680.0,8.62e-05]
[1734357048549,0.19542846,103690.0,103680.0,8.62e-05]
[1734357048978,0.36801916,103690.0,103680.0,8.62e-05]
[1734357049189,0.242917,103680.0,103660.0,0.21110452]
[1734357049391,0.00120582,103670.0,103660.0,0.2046]
[1734357049602,0.00120582,103670.0,103660.0,0.21965521]
[1734357050035,0.00120582,103670.0,103660.0,0.2046]
[1734357051110,0.19412482,103670.0,103660.0,0.2046]
[1734357051324,0.19412482,103670.0,103660.0,0.15]
[1734357051544,0.24412482,103670.0,103660.0,0.15]
[1734357051746,0.242919,103670.0,103660.0,0.15]
[1734357052139,0.05,103670.0,103660.0,0.15]
[1734357052426,0.05120582,103670.0,103660.0,0.15]
[1734357052633,0.05120582,103670.0,103660.0,0.188587]
[1734357053046,0.05120582,103670.0,103660.0,0.20364282]
[1734357053458,0.05120582,103670.0,103660.0,0.3649954]
[1734357053459,0.05,103670.0,103660.0,0.3649954]
[1734357053710,0.0013408,103690.0,103670.0,0.244183]
[1734357053922,0.0013408,103690.0,103680.0,0.03858]
[1734357054129,0.0013408,103690.0,103680.0,0.18858]
[1734357055322,0.00254639,103690.0,103680.0,0.15]
[1734357055859,0.05254639,103690.0,103680.0,0.15]
[1734357056126,0.24542839,103690.0,103670.0,0.243181]
[1734357056417,0.0513408,103690.0,103670.0,0.281762]
[1734357056657,0.05254639,103690.0,103670.0,0.320344]
[1734357057518,0.05254639,103690.0,103670.0,0.281762]
[1734357057760,0.05254639,103690.0,103680.0,0.18858]
[1734357057972,0.0513408,103690.0,103680.0,0.18858]
[1734357059018,0.05254638,103690.0,103680.0,0.18858]
[1734357059231,0.0513408,103690.0,103680.0,0.18858]
[1734357060755,0.0513408,103690.0,103680.0,0.15]
[1734357060964,0.32722831,103690.0,103680.0,0.15]
[1734357061177,0.5189048,103690.0,103670.0,0.243181]
[1734357062057,0.1331408,103690.0,103670.0,0.320345]
[1734357062279,0.13434639,103690.0,103670.0,0.320345]
[1734357062738,0.32723039,103690.0,103670.0,0.281763]
[1734357062973,0.3260248,103690.0,103670.0,0.281763]
[1734357063386,0.5189088,103690.0,103670.0,0.281763]
[1734357064061,0.3260248,103690.0,103670.0,0.281763]
[1734357064282,0.0513408,103690.0,103670.0,0.281762]
[1734357064486,0.24542942,103690.0,103670.0,0.281762]
[1734357064698,0.2442238,103690.0,103670.0,0.281762]
[1734357066653,0.2442238,103690.0,103670.0,0.271848]
[1734357067545,0.4845138,103690.0,103670.0,0.15]
[1734357067760,0.6774098,103690.0,103670.0,0.15]
[1734357067995,0.5645138,103690.0,103670.0,0.188583]
[1734357068260,0.3716238,103690.0,103670.0,0.227166]
[1734357069317,0.3716238,103690.0,103670.0,0.038583]
[1734357069529,0.3716238,103690.0,103660.0,0.15145258]
[1734357069744,0.1787408,103690.0,103670.0,0.038581]
[1734357069954,0.17994642,103690.0,103670.0,0.038581]
[1734357070161,0.17994642,103690.0,103670.0,0.077162]
[1734357070813,0.37283042,103690.0,103670.0,0.077162]
[1734357071027,0.0513408,103690.0,103680.0,0.03858]
[1734357071236,0.0013408,103690.0,103680.0,0.19003258]
[1734357071449,0.0013408,103690.0,103680.0,0.28432328]
[1734357071665,0.0013408,103690.0,103680.0,0.1775707]
[1734357072123,0.0513408,103690.0,103680.0,0.1775707]
[1734357072342,0.0513408,103690.0,103680.0,0.3275707]
[1734357072987,0.0513408,103690.0,103680.0,0.2828707]
[1734357073198,0.1318408,103690.0,103680.0,0.15]
[1734357073451,0.32592839,103690.0,103670.0,0.15]
[1734357073666,0.00120565,103680.0,103660.0,0.22717]
[1734357073886,0.00120565,103680.0,103660.0,0.3214607]
[1734357074978,0.29010665,103680.0,103660.0,0.188585]
[1734357075194,0.48181,103680.0,103660.0,0.188585]
[1734357075397,0.288901,103680.0,103660.0,0.188585]
[1734357075645,0.561811,103680.0,103660.0,0.188585]
[1734357076763,0.176,103680.0,103660.0,0.019293]
[1734357076975,0.17720572,103680.0,103660.0,0.188584]
[1734357077400,0.17720572,103680.0,103660.0,0.169292]
[1734357077609,0.37010672,103680.0,103660.0,0.169292]
[1734357077823,0.368901,103680.0,103660.0,0.169292]
[1734357078042,0.176,103680.0,103660.0,0.188585]
[1734357078269,0.17720572,103680.0,103670.0,0.019291]
[1734357080024,0.17737832,103680.0,103670.0,0.019291]
[1734357080239,0.17737832,103680.0,103660.0,0.42317406]
[1734357080455,0.37027932,103680.0,103660.0,0.2747552]
[1734357080675,0.3690736,103680.0,103660.0,0.40388106]
[1734357081090,0.3690736,103680.0,103660.0,0.2747552]
[1734357081330,0.3690736,103680.0,103660.0,0.65057601]
[1734357081751,0.3690736,103680.0,103660.0,0.65072568]
[1734357082635,0.1761726,103680.0,103660.0,0.67001868]
[1734357082856,0.17737833,103680.0,103670.0,0.019291]
[1734357083279,0.17737833,103680.0,103660.0,0.57604887]
[1734357083485,0.17737833,103680.0,103660.0,0.84171087]
[1734357083727,0.17737833,103680.0,103670.0,0.019291]
[1734357083937,0.17737833,103680.0,103660.0,0.42317306]
[1734357084088,0.17737833,103680.0,103660.0,0.59534087]
[1734357084298,0.17721206,103680.0,103660.0,0.6695314]
[1734357085263,0.17721206,103680.0,103670.0,0.019291]
[1734357085385,0.0501726,103680.0,103670.0,0.019291]
[1734357085784,0.0501726,103680.0,103670.0,0.2553749]
[1734357085785,0.0001726,103680.0,103670.0,0.2553749]
[1734357086008,0.0501726,103680.0,103670.0,0.2553749]
[1734357086929,0.0001726,103680.0,103670.0,0.38450076]
[1734357087137,0.0001726,103680.0,103670.0,0.80241185]
[1734357087335,0.0001726,103680.0,103670.0,1.04708209]
[1734357087684,0.0001726,103680.0,103670.0,0.94032951]
[1734357087894,0.0501726,103680.0,103670.0,0.89562951]
[1734357088109,0.0501726,103680.0,103670.0,0.3496656]
[1734357088341,0.0001726,103680.0,103670.0,0.3496656]
[1734357088553,0.0001726,103680.0,103670.0,0.47879146]
[1734357088753,0.0001726,103680.0,103670.0,0.83036185]
[1734357088952,0.0001726,103680.0,103670.0,0.72360927]
[1734357089380,0.0501726,103680.0,103670.0,0.3496656]
[1734357089603,0.0501726,103680.0,103670.0,0.47879146]
[1734357089841,0.0501726,103680.0,103670.0,0.3496656]
[1734357090076,0.0501726,103680.0,103670.0,0.7231992]
[1734357090284,0.0001726,103680.0,103670.0,0.47879146]
[1734357090488,0.0501726,103680.0,103670.0,0.72327515]
[1734357090695,0.0501726,103680.0,103670.0,0.72337715]
[1734357090917,0.0501726,103680.0,103670.0,0.3496656]
[1734357091090,0.0501726,103680.0,103670.0,0.72408406]
[1734357091291,0.0501726,103680.0,103670.0,0.72359445]
[1734357091495,0.0501726,103680.0,103670.0,0.49980837]
[1734357091696,0.0501726,103680.0,103670.0,0.74463497]
[1734357092699,0.0501726,103680.0,103670.0,0.49980837]
[1734357092957,0.0501726,103680.0,103670.0,0.7533974]
[1734357094551,0.0001726,103680.0,103670.0,0.75328095]
[1734357094761,0.0001726,103680.0,103670.0,0.92548995]
[1734357095217,0.0001726,103680.0,103670.0,1.03224253]
[1734357095745,0.0001726,103680.0,103670.0,0.86003353]
[1734357096102,0.0001726,103680.0,103670.0,0.92548995]
[1734357096286,0.0001726,103680.0,103670.0,0.75328095]
[1734357096624,0.0001726,103680.0,103670.0,0.92548995]
[1734357096832,0.0001726,103680.0,103670.0,1.03224253]
[1734357097020,0.0001726,103680.0,103670.0,1.0546467]
[1734357097353,0.0001726,103680.0,103670.0,1.17929079]
[1734357097555,0.0001726,103680.0,103670.0,0.96402954]
[1734357098586,0.0001726,103680.0,103670.0,0.79182054]
[1734357098786,0.0001726,103680.0,103670.0,0.96402954]
[1734357099037,0.0001726,103680.0,103670.0,0.96446175]
[1734357100919,0.0001726,103680.0,103670.0,1.17987163]
[1734357101130,0.0001726,103680.0,103670.0,0.96446175]
[1734357101334,0.0001726,103680.0,103670.0,1.17987163]
[1734357101542,0.0001726,103680.0,103670.0,0.96446175]
[1734357102295,0.0001726,103680.0,103670.0,1.17987163]
[1734357102496,0.0001726,103680.0,103670.0,0.96446175]
[1734357103672,0.0001726,103680.0,103670.0,1.17987163]
[1734357103896,0.0001726,103680.0,103670.0,1.17950419]
[1734357104096,0.0001726,103680.0,103670.0,0.96410533]
[1734357104318,0.0001726,103680.0,103670.0,0.70052363]
[1734357104520,0.0001726,103680.0,103670.0,0.14570845]
[1734357104791,0.0001726,103680.0,103670.0,0.16499945]
[1734357105641,0.0497726,103680.0,103670.0,0.12646745]
[1734357105893,0.1257726,103680.0,103660.0,0.42638825]
[1734357106179,0.3186736,103680.0,103660.0,0.57460719]
[1734357106462,0.076,103670.0,103660.0,0.38477716]
[1734357106693,0.126,103670.0,103660.0,0.08624584]
[1734357106950,0.126,103670.0,103660.0,0.10553884]
[1734357107452,0.126,103670.0,103660.0,0.0193793]
[1734357107959,0.126,103670.0,103660.0,0.1877847]
[1734357108695,0.126,103670.0,103660.0,0.1684917]
[1734357109577,0.366719,103670.0,103660.0,0.0184917]
[1734357109787,0.366719,103670.0,103660.0,0.1684917]
[1734357110523,0.316719,103670.0,103660.0,0.1684917]
[1734357110722,0.316719,103670.0,103660.0,0.1500863]
[1734357111323,0.316719,103670.0,103660.0,8.63e-05]
[1734357115423,0.05,103660.0,103650.0,0.33120872]
[1734357115630,0.05,103660.0,103650.0,0.24508186]
[1734357116042,0.05,103660.0,103650.0,0.31536612]
[1734357116244,0.05,103660.0,103650.0,0.40149298]
[1734357116696,0.05,103660.0,103650.0,0.24508186]
[1734357116912,0.05,103660.0,103650.0,0.33120872]
[1734357117130,0.05,103660.0,103650.0,0.24508186]
[1734357117548,0.1324,103660.0,103650.0,0.22578686]
[1734357117965,0.0824,103660.0,103650.0,0.22578686]
[1734357118185,0.1324,103660.0,103650.0,0.22578686]
[1734357119852,0.27654394,103660.0,103650.0,0.18854]
[1734357120031,0.325338,103660.0,103650.0,0.18854]
[1734357120465,0.375038,103660.0,103650.0,0.18854]
[1734357120669,0.1821,103660.0,103650.0,0.27811926]
[1734357122699,0.1321,103660.0,103650.0,0.27811926]
[1734357122829,0.1821,103660.0,103650.0,0.27811926]
[1734357123969,0.1321,103660.0,103650.0,0.27811926]
[1734357124203,0.1321,103660.0,103650.0,0.36417409]
[1734357124406,0.1821,103660.0,103650.0,0.49325634]
[1734357124619,0.1821,103660.0,103650.0,0.36417409]
[1734357124783,0.1321,103660.0,103650.0,0.36417409]
[1734357125215,0.1321,103660.0,103650.0,0.36426029]
[1734357126190,0.1821,103660.0,103650.0,0.36426029]
[1734357127233,0.1821,103660.0,103650.0,0.27820546]
[1734357127440,0.1821,103660.0,103650.0,0.36429358]
[1734357128679,0.1821,103660.0,103650.0,0.27820546]
[1734357129093,0.1821,103660.0,103650.0,0.29400932]
[1734357129304,0.1821,103660.0,103650.0,0.2079212]
[1734357129511,0.0497,103660.0,103650.0,0.36429358]
[1734357130134,0.0997,103660.0,103650.0,0.36429358]
[1734357130979,0.0001724,103670.0,103660.0,0.192293]
[1734357131192,0.0001724,103670.0,103660.0,0.64221767]
[1734357131395,0.0001724,103670.0,103660.0,1.21048966]
[1734357132240,0.0001724,103670.0,103660.0,1.08145039]
[1734357132713,0.0001724,103670.0,103660.0,1.21045643]
[1734357132946,0.0001724,103670.0,103660.0,1.08145039]
[1734357133159,0.0001724,103670.0,103660.0,1.21045969]
[1734357133361,0.0001724,103670.0,103660.0,1.22589477]
[1734357133564,0.0001724,103670.0,103660.0,1.21045969]
[1734357134200,0.0001724,103670.0,103660.0,1.08145039]
[1734357134401,0.0001724,103670.0,103660.0,1.20776972]
[1734357134934,0.0001724,103670.0,103660.0,1.13748546]
[1734357135143,0.129,103660.0,103650.0,0.27293239]
[1734357135352,0.13020582,103660.0,103650.0,0.0386262]
[1734357135564,0.129,103660.0,103650.0,0.0386262]
[1734357135763,0.129,103660.0,103650.0,0.0579212]
[1734357136372,0.129,103660.0,103650.0,0.0386262]
[1734357136576,0.321938,103660.0,103650.0,0.0386262]
[1734357136808,0.317838,103660.0,103650.0,0.1886262]
[1734357137002,0.317838,103660.0,103650.0,0.1500862]
[1734357137003,0.367838,103660.0,103650.0,0.1500862]
[1734357137229,0.367838,103660.0,103650.0,8.62e-05]
[1734357137797,0.3680104,103660.0,103650.0,8.62e-05]
[1734357140065,0.1750724,103660.0,103650.0,8.62e-05]
[1734357140679,0.17627834,103660.0,103650.0,8.62e-05]
[1734357140886,0.36921634,103660.0,103650.0,8.62e-05]
[1734357141082,0.3680104,103660.0,103650.0,8.62e-05]
[1734357141491,0.3680104,103660.0,103640.0,0.02442525]
[1734357141692,0.3680104,103660.0,103640.0,0.04372125]
[1734357141866,0.3680104,103660.0,103640.0,0.038592]
[1734357143290,0.3680104,103660.0,103640.0,0.05365031]
[1734357143884,0.3680104,103660.0,103640.0,0.20365031]
[1734357145006,0.5609604,103660.0,103640.0,0.18435431]
[1734357145403,0.5609604,103660.0,103640.0,0.20365031]
[1734357146256,0.5609604,103660.0,103640.0,0.18435431]
[1734357146648,0.5609604,103660.0,103640.0,0.20365131]
[1734357146849,0.082,103650.0,103640.0,0.20365131]
[1734357147828,0.082,103650.0,103640.0,16.20365131]
[1734357148068,0.082,103650.0,103640.0,16.20421266]
[1734357149454,0.082,103650.0,103640.0,16.29030501]
[1734357150173,0.082,103650.0,103640.0,16.2752467]
[1734357150681,0.082,103650.0,103640.0,16.2753329]
[1734357151653,0.082,103650.0,103640.0,16.67610086]
[1734357151908,0.082,103650.0,103640.0,16.67650003]
[1734357153200,0.082,103650.0,103640.0,16.69155838]
[1734357155412,0.082,103650.0,103640.0,16.67226138]
[1734357155701,0.082,103650.0,103640.0,16.40075707]
[1734357155947,0.082,103650.0,103640.0,16.67283032]
[1734357157404,0.082,103650.0,103640.0,16.67303048]
[1734357159947,0.082,103650.0,103640.0,16.65797213]
[1734357161996,0.132,103650.0,103640.0,16.65797213]
[1734357162279,0.132,103650.0,103640.0,16.65851926]
[1734357162548,0.371557,103650.0,103640.0,16.63922326]
[1734357162791,0.1786,103650.0,103640.0,16.65852026]
[1734357163304,0.1786,103650.0,103640.0,16.2359941]
[1734357163567,0.1786,103650.0,103640.0,16.3859941]
[1734357164342,0.1786,103650.0,103640.0,16.25636437]
[1734357165138,0.1786,103650.0,103640.0,16.3859941]
[1734357165396,0.1786,103650.0,103640.0,16.23706737]
[1734357165676,0.56191671,103650.0,103640.0,16.00064755]
[1734357165840,0.73222498,103650.0,103640.0,16.00064755]
[1734357166050,0.73222498,103650.0,103640.0,15.95064755]
[1734357166051,0.67811666,103650.0,103640.0,15.95064755]
[1734357166258,0.73211826,103650.0,103640.0,15.95064755]
[1734357166467,0.60235592,103650.0,103640.0,15.95064755]
[1734357166674,0.67265022,103650.0,103640.0,15.95064755]
[1734357166881,0.67265022,103650.0,103640.0,15.94576711]
[1734357167934,0.58615597,103650.0,103640.0,15.94576711]
[1734357168131,0.62305325,103650.0,103640.0,15.94576711]
[1734357168341,0.62305325,103650.0,103640.0,15.81766711]
[1734357168727,0.7095475,103650.0,103640.0,15.81766711]
[1734357168935,0.62305325,103650.0,103640.0,15.81766711]
[1734357170340,0.63855799,103650.0,103640.0,15.81766711]
[1734357171791,0.63855799,103650.0,103640.0,15.57159826]
[1734357173783,0.63873059,103650.0,103640.0,15.57159826]
[1734357175042,0.43152504,103650.0,103640.0,15.57159826]
[1734357175936,0.33723434,103650.0,103640.0,15.57159826]
[1734357176524,0.3217296,103650.0,103640.0,15.57159826]
[1734357176927,0.1287726,103650.0,103640.0,15.57159826]
[1734357177387,0.0821726,103650.0,103640.0,15.57159826]
[1734357177631,0.0001726,103650.0,103640.0,15.59089526]
[1734357177832,0.0001726,103650.0,103640.0,15.74089526]
[1734357178666,0.0501726,103650.0,103640.0,15.74089526]
[1734357178875,0.0001726,103650.0,103640.0,15.7547357]
[1734357179258,0.0501726,103650.0,103640.0,15.7547357]
[1734357179635,0.0001726,103650.0,103640.0,15.7547357]
[1734357179838,0.0501726,103650.0,103640.0,15.7547357]
[1734357182153,0.0001726,103650.0,103640.0,15.7547357]
[1734357182341,0.0501726,103650.0,103640.0,15.7547357]
[1734357183000,0.0001726,103650.0,103640.0,16.10813195]
[1734357183211,0.0001726,103650.0,103640.0,16.92285586]
[1734357183420,0.0001726,103650.0,103640.0,16.74985502]
[1734357183632,0.0001724,103660.0,103650.0,0.223]
[1734357183846,0.0001724,103660.0,103650.0,1.19252925]
[1734357184057,0.0001724,103660.0,103650.0,1.3313946]
[1734357185583,0.0001724,103660.0,103650.0,1.15885045]
[1734357186681,0.0001724,103660.0,103650.0,1.0516449]
[1734357186927,0.0001724,103660.0,103650.0,1.04822372]
[1734357187187,0.0001724,103660.0,103650.0,1.32797342]
[1734357187423,0.0001724,103660.0,103650.0,1.45737454]
[1734357187828,0.0001724,103660.0,103650.0,1.3278836]
[1734357189324,0.0001724,103660.0,103650.0,1.15533945]
[1734357192283,0.0001724,103660.0,103650.0,0.89049416]
[1734357192491,4e-07,103660.0,103650.0,1.32592405]
[1734357192702,4e-07,103660.0,103650.0,1.45541499]
[1734357192911,4e-07,103660.0,103650.0,1.53857575]
[1734357193129,4e-07,103660.0,103650.0,1.53857492]
[1734357193344,4e-07,103660.0,103650.0,1.45246842]
[1734357193774,4e-07,103660.0,103650.0,1.32330782]
[1734357197255,4e-07,103660.0,103650.0,1.32306479]
[1734357197693,4e-07,103660.0,103650.0,1.15086169]
[1734357197899,4e-07,103660.0,103650.0,1.32306479]
[1734357198110,4e-07,103660.0,103650.0,1.15086169]
[1734357200685,4e-07,103660.0,103650.0,0.88989936]
[1734357201177,4e-07,103660.0,103650.0,1.1511431]
[1734357201845,4e-07,103660.0,103650.0,0.88989936]
[1734357202058,4e-07,103660.0,103650.0,1.15089921]
[1734357202877,4e-07,103660.0,103650.0,0.88989936]
[1734357203085,0.0001328,103670.0,103650.0,1.10041349]
[1734357203295,0.0754726,103690.0,103680.0,0.1318]
[1734357203296,0.0001726,103690.0,103680.0,0.1318]
[1734357203506,0.0001726,103690.0,103680.0,0.52558625]
[1734357204361,0.0001726,103690.0,103680.0,0.6327918]
[1734357204569,7.9e-07,103690.0,103680.0,0.71874835]
[1734357204781,7.9e-07,103690.0,103680.0,0.76724835]
[1734357205004,7.9e-07,103690.0,103680.0,1.32311328]
[1734357205658,7.9e-07,103690.0,103680.0,0.76724835]
[1734357206075,0.0001726,103720.0,103710.0,0.019284]
[1734357206285,0.00022886,103720.0,103710.0,0.29948955]
[1734357206732,0.00022886,103720.0,103710.0,0.5009858]
[1734357208868,0.00022886,103720.0,103710.0,0.39378025]
[1734357209336,0.00022886,103720.0,103710.0,0.2865747]
[1734357211855,0.00022886,103720.0,103710.0,0.39378025]
[1734357212487,0.07982886,103720.0,103710.0,0.3008412]
[1734357213168,0.12872886,103720.0,103710.0,0.3008412]
[1734357214950,0.12872886,103720.0,103710.0,0.40804675]
[1734357215156,0.07982886,103720.0,103710.0,0.40804675]
[1734357218186,0.07982886,103720.0,103710.0,0.40504675]
[1734357220054,0.00022886,103720.0,103710.0,0.5622523]
[1734357220309,0.1239726,103740.0,103720.0,0.192282]
[1734357220518,0.1239726,103740.0,103730.0,0.39377625]
[1734357222342,0.1239726,103740.0,103730.0,0.2865707]
[1734357225410,0.19279,103740.0,103720.0,0.019281]
[1734357225592,0.38679287,103740.0,103720.0,0.019281]
[1734357225798,0.38679287,103740.0,103710.0,0.07267685]
[1734357225799,0.57839,103740.0,103710.0,0.07267685]
[1734357226004,0.00120503,103730.0,103710.0,0.03411085]
[1734357226204,0.19401303,103730.0,103710.0,0.03411085]
[1734357226408,0.4798787,103740.0,103710.0,0.05873334]
[1734357226704,0.192808,103730.0,103710.0,0.05873434]
[1734357226867,0.4798787,103740.0,103710.0,0.05873434]
[1734357227072,0.6726827,103740.0,103710.0,0.09730134]
[1734357227513,0.00120509,103730.0,103710.0,0.09730134]
[1734357228170,0.19401409,103730.0,103710.0,0.09730134]
[1734357228395,0.0777,103720.0,103710.0,0.09730134]
[1734357228651,0.0777,103720.0,103710.0,0.00590084]
[1734357229090,0.0777,103720.0,103710.0,0.04446984]
[1734357229309,0.0777,103720.0,103710.0,0.00590084]
[1734357230829,0.0777,103720.0,103710.0,0.04446984]
[1734357231454,0.0481,103730.0,103710.0,0.30167539]
[1734357231676,0.1289,103730.0,103720.0,0.188565]
[1734357232736,0.1301051,103730.0,103720.0,0.15]
[1734357232945,0.1301051,103730.0,103710.0,0.26626335]
[1734357233150,0.1301051,103730.0,103710.0,0.22769435]
[1734357233534,0.1301051,103730.0,103710.0,0.26634755]
[1734357235918,0.1301051,103730.0,103710.0,0.22778055]
[1734357236119,0.0801,103720.0,103710.0,0.15064755]
[1734357237864,0.17559587,103720.0,103710.0,0.00064755]
[1734357238074,0.41792187,103720.0,103710.0,0.00064755]
[1734357238317,0.4167167,103720.0,103710.0,0.00064755]
[1734357243876,0.52392225,103720.0,103710.0,0.00064755]
[1734357244410,0.61492325,103720.0,103710.0,0.00064755]
[1734357244820,0.52392225,103720.0,103710.0,0.00064755]
[1734357247893,0.57392225,103720.0,103710.0,0.00064755]
[1734357248149,0.62392225,103720.0,103710.0,0.00064755]
[1734357251597,0.4667167,103720.0,103710.0,0.00064755]
[1734357252103,0.57392225,103720.0,103710.0,0.00064755]
[1734357254677,0.52392225,103720.0,103710.0,0.00064755]
[1734357254877,0.4167167,103720.0,103710.0,0.00064755]
[1734357255213,0.2238907,103720.0,103710.0,0.00064755]
[1734357255412,0.4167167,103720.0,103710.0,0.00064755]
[1734357255816,0.3672167,103720.0,103710.0,0.00064755]
[1734357256798,0.3672167,103720.0,103690.0,0.06945701]
[1734357256979,0.00120534,103710.0,103700.0,0.038571]
[1734357257252,0.00120534,103710.0,103690.0,0.123081]
[1734357257429,0.00120534,103710.0,103690.0,0.084507]
[1734357258261,0.00120534,103710.0,103690.0,0.123081]
[1734357258476,0.00120534,103710.0,103690.0,0.084507]
[1734357258656,0.00120534,103710.0,103690.0,0.045933]
[1734357258883,0.36674104,103710.0,103690.0,0.01504999]
[1734357259100,0.55959604,103710.0,103690.0,0.01504999]
[1734357259892,0.55959604,103710.0,103680.0,0.18144122]
[1734357260703,0.55959604,103710.0,103680.0,0.14286322]
[1734357260912,0.75245604,103710.0,103680.0,0.14286322]
[1734357261377,0.75245604,103710.0,103680.0,0.18144122]
[1734357262467,0.55959604,103710.0,103690.0,0.188576]
[1734357263086,0.36674104,103710.0,103690.0,0.22715]
[1734357263296,0.36674104,103710.0,103690.0,0.188574]
[1734357263506,0.55959304,103710.0,103690.0,0.188574]
[1734357263761,0.55959304,103710.0,103690.0,0.15]
[1734357264385,0.75244904,103710.0,103690.0,0.15]
[1734357264839,0.59702475,103710.0,103690.0,0.15]
[1734357265086,0.467228,103700.0,103680.0,0.10428522]
[1734357265334,0.00120547,103690.0,103670.0,0.077163]
[1734357265571,0.19408847,103690.0,103670.0,0.077163]
[1734357266535,0.56276917,103690.0,103670.0,0.15]
[1734357267661,0.75566917,103690.0,103670.0,0.15]
[1734357268518,0.192901,103680.0,103670.0,0.15]
[1734357268734,0.1941067,103680.0,103670.0,0.15]
[1734357268940,0.0012057,103680.0,103670.0,0.15]
[1734357269778,0.00176799,103680.0,103670.0,0.15]
[1734357270018,0.00176799,103680.0,103670.0,0.16520622]
[1734357270201,0.00176799,103680.0,103670.0,0.15]
[1734357270432,0.19466899,103680.0,103670.0,0.15]
[1734357274175,0.56347469,103680.0,103660.0,0.15]
[1734357274377,0.17765869,103680.0,103660.0,0.227169]
[1734357274586,0.17765869,103680.0,103670.0,0.038583]
[1734357275007,0.17765869,103680.0,103660.0,0.265754]
[1734357275472,0.17765869,103680.0,103670.0,0.038583]
[1734357275473,0.00056229,103680.0,103670.0,0.038583]
[1734357276358,0.00056229,103680.0,103670.0,0.14578855]
[1734357276568,0.00056229,103680.0,103670.0,0.37248855]
[1734357278595,0.00056229,103680.0,103670.0,0.45883279]
[1734357279210,0.00056229,103680.0,103670.0,0.58843545]
[1734357280059,0.00056229,103680.0,103670.0,0.6051849]
[1734357280245,0.00056229,103680.0,103670.0,0.87004723]
[1734357280674,0.00056229,103680.0,103670.0,0.47566854]
[1734357281079,0.00056229,103680.0,103670.0,0.6051849]
[1734357281285,0.00056229,103680.0,103670.0,0.87041076]
[1734357281950,0.00056229,103680.0,103670.0,0.09353575]
[1734357282125,0.00056229,103680.0,103670.0,0.17987999]
[1734357282326,0.00056229,103680.0,103670.0,0.21854097]
[1734357282557,0.00056229,103680.0,103670.0,0.16854097]
[1734357282968,0.00056229,103680.0,103670.0,0.08211875]
[1734357283169,0.00056229,103680.0,103670.0,0.16854097]
[1734357284204,0.00056229,103680.0,103670.0,0.31854097]
[1734357285667,0.00056229,103680.0,103670.0,0.29184097]
[1734357286297,0.00056229,103680.0,103670.0,0.30704719]
[1734357286505,0.00056229,103680.0,103670.0,0.29184097]
[1734357286921,0.08196229,103680.0,103670.0,0.27509152]
[1734357287126,0.08196229,103680.0,103670.0,0.1886693]
[1734357290703,0.08196229,103680.0,103670.0,0.27509152]
[1734357291381,0.08196229,103680.0,103670.0,0.1886693]
[1734357291791,0.08196229,103680.0,103670.0,0.27509152]
[1734357292631,0.08196229,103680.0,103670.0,0.40472485]
[1734357292859,0.08196229,103680.0,103670.0,0.67090925]
[1734357294712,0.08196229,103680.0,103670.0,0.40472485]
[1734357295601,0.08196229,103680.0,103670.0,0.67097273]
[1734357296368,0.08196229,103680.0,103670.0,0.67073182]
[1734357302116,0.00056229,103680.0,103670.0,1.0312649]
[1734357302323,0.00056229,103680.0,103670.0,1.31959503]
[1734357302507,0.00056229,103680.0,103670.0,1.23310298]
[1734357302945,0.00073489,103680.0,103670.0,1.23310298]
[1734357304177,0.00073489,103680.0,103670.0,1.2324419]
[1734357304595,0.00073489,103680.0,103670.0,1.10264085]
[1734357304817,0.00073489,103680.0,103670.0,1.03054085]
[1734357305085,0.00073489,103680.0,103670.0,0.97280533]
[1734357305287,0.07693489,103680.0,103670.0,0.84301642]
[1734357305596,0.07693489,103680.0,103670.0,0.63136535]
[1734357305797,0.12493489,103680.0,103670.0,0.23663248]
[1734357306006,0.31783589,103680.0,103670.0,0.1500863]
[1734357306468,0.41212659,103680.0,103670.0,8.63e-05]
[1734357311013,0.57108159,103680.0,103670.0,8.63e-05]
[1734357311452,0.48238487,103680.0,103670.0,8.63e-05]
[1734357313105,0.55264315,103680.0,103670.0,8.63e-05]
[1734357313314,0.60264315,103680.0,103670.0,8.63e-05]
[1734357313491,0.68904938,103680.0,103670.0,8.63e-05]
[1734357314159,0.65566544,103680.0,103670.0,8.63e-05]
[1734357314364,0.7498407,103680.0,103670.0,8.63e-05]
[1734357315009,0.66343447,103680.0,103670.0,8.63e-05]
[1734357315633,0.56925921,103680.0,103670.0,8.63e-05]
[1734357315870,0.41212659,103680.0,103670.0,8.63e-05]
[1734357319786,0.36412659,103680.0,103670.0,8.63e-05]
[1734357329274,0.07693489,103680.0,103670.0,0.0386693]
[1734357329610,0.00073489,103680.0,103670.0,0.19530192]
[1734357329970,0.00073489,103680.0,103670.0,0.0881693]
[1734357330416,0.00073489,103680.0,103670.0,0.2381693]
[1734357330829,0.00073489,103680.0,103670.0,0.32462874]
[1734357331320,0.00073489,103680.0,103670.0,0.3246162]
[1734357332235,0.00073489,103680.0,103670.0,0.43174882]
[1734357332388,0.00073489,103680.0,103670.0,0.56141917]
[1734357332596,0.00073489,103680.0,103670.0,0.43174882]
[1734357332771,0.00073489,103680.0,103670.0,0.83023466]
[1734357333456,0.00073489,103680.0,103670.0,0.84825732]
[1734357334922,0.00073489,103680.0,103670.0,0.84808964]
[1734357335315,0.00073489,103680.0,103670.0,0.84812326]
[1734357335721,0.00073489,103680.0,103670.0,0.57944183]
[1734357336088,0.00073489,103680.0,103670.0,0.57943463]
[1734357336487,0.00073489,103680.0,103670.0,0.47230201]
[1734357336860,0.00073489,103680.0,103670.0,0.34263598]
[1734357340733,0.00073489,103680.0,103670.0,0.34263807]
[1734357341026,0.00073489,103680.0,103670.0,0.29313807]
[1734357341169,0.08293489,103680.0,103670.0,0.27511541]
[1734357341792,0.08293489,103680.0,103670.0,0.1886693]